fUST/lending_fUST_20240518
["ID","MTS","AMOUNT","RATE_DAILY","PERIOD"]
[327283686,1715961681788,3049.68985014,0.00013622,2]
[327283687,1715961725954,1094.84700582,9.999e-05,2]
[327283688,1715961736110,250.0,0.00013074,2]
[327283689,1715961741228,158.49484679,9.999e-05,2]
[327283690,1715961794493,154.73694719,9.999e-05,2]
[327283691,1715961894616,154.73694719,9.999e-05,2]
[327283692,1715961908935,154.73694719,9.999e-05,2]
[327283693,1715961921879,690.11886562,9.999e-05,2]
[327283695,1715962149185,-3062.04975284,0.00013497,2]
[327283696,1715962149210,-690.11886562,0.00013498,2]
[327283697,1715962149231,-154.73694719,0.00013499,2]
[327283698,1715962149250,-1885.19395395,0.00013499,2]
[327283699,1715962149271,-2946.29309867,0.000135,2]
[327283700,1715962149305,-6451.21837476,0.000135,2]
[327283701,1715962149326,-2114.19374467,0.000135,2]
[327283702,1715962149345,-164.10523627,0.00013515,2]
[327283703,1715962149368,-154.86057603,0.00013616,2]
[327283704,1715962149389,-154.73694719,0.0001362,2]
[327283705,1715962149409,-850.16726401,0.0001362,2]
[327283706,1715962149431,-158.23027563,0.0001362,2]
[327283707,1715962149451,-309.4121139,0.00013621,2]
[327283708,1715962149472,-21850.31014986,0.00013622,2]
[327283709,1715962149491,-216.2891354,0.00013699,2]
[327283710,1715962149511,-164.10523627,0.00013776,2]
[327283711,1715962149530,-164.10523627,0.00014038,2]
[327283712,1715962149550,-164.10523627,0.00014299,2]
[327283713,1715962149569,-2293.5664244,0.00014546,2]
[327283714,1715962149588,-164.10523627,0.0001456,2]
[327283715,1715962149608,-439.45698616,0.0001456,2]
[327283716,1715962149627,-8144.29982408,0.00014654,2]
[327283717,1715962149647,-528.54625031,0.00014657,2]
[327283718,1715962149666,-154.75240234,0.00014657,2]
[327283719,1715962149688,-224.09781465,0.00014657,2]
[327283720,1715962149713,-243.62027154,0.00014657,2]
[327283721,1715962149734,-390.00698023,0.00014657,2]
[327283722,1715962149754,-628.92344938,0.00014657,2]
[327283723,1715962149776,-261.12183143,0.00014658,2]
[327283724,1715962149796,-17847.3475624,0.00014659,2]
[327283725,1715962149816,-186.62571484,0.0001466,2]
[327283726,1715962149837,-155.00453071,0.0001466,2]
[327283727,1715962149857,-341.03127753,0.00014661,2]
[327283728,1715962149876,-801.06450343,0.00014661,2]
[327283729,1715962149896,-209.90249857,0.00014661,2]
[327283730,1715962149916,-905.19763904,0.00014661,2]
[327283731,1715962149938,-154.89332332,0.00014661,2]
[327283732,1715962149957,-157.27495146,0.00014661,2]
[327283733,1715962149976,-442.60736131,0.00014661,2]
[327283734,1715962149996,-156.25790891,0.00014661,2]
[327283735,1715962150016,-262.03324982,0.00014661,2]
[327283736,1715962150037,-155.46832006,0.00014661,2]
[327283737,1715962150057,-663.34487783,0.00014661,2]
[327283738,1715962150076,-834.89269963,0.00014661,2]
[327283739,1715962150096,-155.16954056,0.00014662,2]
[327283740,1715962150116,-2594.90254816,0.00014662,2]
[327283741,1715962150136,-11278.99326162,0.00014663,2]
[327283742,1715962150155,-196.28366287,0.00014763,2]
[327283745,1715962201129,279.189256,0.00014728,2]
[327283746,1715962210179,11080.52455791,0.00014728,2]
[327283747,1715962210202,13819.47544209,0.00014728,2]
[327283779,1715962232255,-91.97178633,0.00014999,2]
[327283781,1715962232267,-156.15527885,0.00014999,2]
[327283782,1715962232275,-943.59980691,0.00015,2]
[327283784,1715962232285,-1956.4104987,0.00015,2]
[327283785,1715962232294,-2107.25657902,0.00015,2]
[327283786,1715962232303,-1148.90229176,0.00015403,2]
[327283787,1715962232312,-173.2,0.00015404,2]
[327283788,1715962232321,-439.45698615,0.00015484,2]
[327283789,1715962232330,-2180.60993293,0.000159,2]
[327283790,1715962232339,-2114.19374467,0.00015998,2]
[327283791,1715962232348,-321.17083638,0.00015998,2]
[327283792,1715962232357,-2072.16563842,0.00015998,2]
[327283793,1715962232366,-244.93838591,0.00015998,2]
[327283794,1715962232375,-657.4915143,0.00015999,2]
[327283795,1715962232384,-8898.51806041,0.00015999,2]
[327283796,1715962232393,-297.25726222,0.00016,2]
[327283797,1715962232402,-7966.29275223,0.00016,2]
[327283798,1715962232411,-5019.36336665,0.00016,2]
[327283799,1715962232420,-173.2,0.00016049,2]
[327283800,1715962232429,-439.45698615,0.00016408,2]
[327283801,1715962232438,-687.9358299,0.00016432,2]
[327283802,1715962232447,-5023.17774762,0.00016432,2]
[327283803,1715962232456,-154.81422293,0.00016432,2]
[327283804,1715962232465,-194.1642929,0.00016432,2]
[327283805,1715962232474,-155.52380017,0.00016434,2]
[327283806,1715962232483,-201.8725689,0.00016434,2]
[327283807,1715962232491,-155.45553547,0.00016434,2]
[327283808,1715962232502,-937.68053305,0.00016434,2]
[327283809,1715962232511,-1400.60904381,0.00016434,2]
[327283810,1715962232520,-429.94245468,0.00016435,2]
[327283811,1715962232530,-1682.5168572,0.00016436,2]
[327283812,1715962232541,-1579.70306251,0.00016436,2]
[327283813,1715962232550,-555.58050279,0.00016436,2]
[327283835,1715962238132,-690.11886562,0.00015402,2]
[327283837,1715962238142,-2114.19374467,0.00015402,2]
[327283839,1715962238151,-781.14606806,0.00016436,2]
[327283841,1715962238161,-2792.7493606,0.00016436,2]
[327283843,1715962238170,-155.35664574,0.00016436,2]
[327283845,1715962238180,-1634.82759572,0.00016436,2]
[327283847,1715962238189,-156.36643608,0.00016436,2]
[327283849,1715962238199,-155.1039271,0.00016436,2]
[327283851,1715962238209,-331.17109693,0.00016436,2]
[327283853,1715962238223,-497.93597077,0.00016436,2]
[327283855,1715962238233,-233.81269685,0.00016437,2]
[327283857,1715962238242,-662.85805754,0.00016437,2]
[327283859,1715962238253,-500.0,0.00016438,2]
[327283861,1715962238263,-509.46024388,0.00016438,2]
[327283863,1715962238272,-199.25,0.00016438,2]
[327283865,1715962238282,-500.0,0.00016438,2]
[327283867,1715962238292,-500.0,0.00016438,2]
[327283869,1715962238302,-500.0,0.00016438,2]
[327283872,1715962238312,-500.0,0.00016438,2]
[327283873,1715962238322,-221.28872477,0.00016438,2]
[327283875,1715962238331,-500.0,0.00016438,2]
[327283877,1715962238340,-227.21197337,0.00016438,2]
[327283880,1715962238350,-504.05135714,0.00016438,2]
[327283882,1715962238359,-500.0,0.00016438,2]
[327283884,1715962238368,-500.0,0.00016438,2]
[327283885,1715962238378,-500.0,0.00016438,2]
[327283888,1715962238387,-500.0,0.00016438,2]
[327283890,1715962238397,-500.0,0.00016438,2]
[327283892,1715962238406,-500.0,0.00016438,2]
[327283894,1715962238416,-500.0,0.00016438,2]
[327283896,1715962238425,-500.0,0.00016438,2]
[327283898,1715962238435,-500.0,0.00016438,2]
[327283900,1715962238444,-500.0,0.00016438,2]
[327283902,1715962238453,-500.0,0.00016438,2]
[327283904,1715962238462,-500.0,0.00016438,2]
[327283906,1715962238471,-263.2975575,0.00016438,2]
[327283907,1715962238481,-500.0,0.00016438,2]
[327283910,1715962238491,-500.0,0.00016438,2]
[327283911,1715962238502,-500.0,0.00016438,2]
[327283914,1715962238512,-500.0,0.00016438,2]
[327283915,1715962238521,-500.0,0.00016438,2]
[327283917,1715962238531,-500.0,0.00016438,2]
[327283920,1715962238541,-500.0,0.00016438,2]
[327283922,1715962238550,-495.02,0.00016438,2]
[327283924,1715962238560,-556.11,0.00016438,2]
[327283926,1715962238569,-500.0,0.00016438,2]
[327283928,1715962238578,-272.64,0.00016438,2]
[327283930,1715962238588,-500.0,0.00016438,2]
[327283932,1715962238599,-500.0,0.00016438,2]
[327283934,1715962238609,-500.0,0.00016438,2]
[327283936,1715962238619,-500.0,0.00016438,2]
[327283938,1715962238628,-500.0,0.00016438,2]
[327283940,1715962238637,-500.0,0.00016438,2]
[327283942,1715962238650,-500.0,0.00016438,2]
[327283944,1715962238660,-500.0,0.00016438,2]
[327283946,1715962238669,-500.0,0.00016438,2]
[327283948,1715962238678,-500.0,0.00016438,2]
[327283950,1715962238688,-611.27,0.00016438,2]
[327283952,1715962238697,-500.0,0.00016438,2]
[327283954,1715962238707,-500.0,0.00016438,2]
[327283956,1715962238717,-482.13,0.00016438,2]
[327283958,1715962238726,-500.0,0.00016438,2]
[327283960,1715962238735,-500.0,0.00016438,2]
[327283962,1715962238745,-500.0,0.00016438,2]
[327283964,1715962238760,-500.0,0.00016438,2]
[327283966,1715962238769,-500.0,0.00016438,2]
[327283968,1715962238779,-500.0,0.00016438,2]
[327283970,1715962238788,-500.0,0.00016438,2]
[327283972,1715962238797,-500.0,0.00016438,2]
[327283974,1715962238806,-500.0,0.00016438,2]
[327283976,1715962238815,-500.0,0.00016438,2]
[327283978,1715962238825,-500.0,0.00016438,2]
[327283980,1715962238834,-500.0,0.00016438,2]
[327283982,1715962238843,-500.0,0.00016438,2]
[327283984,1715962238852,-386.51798469,0.00016438,2]
[327283986,1715962238861,-500.0,0.00016438,2]
[327283988,1715962238870,-500.0,0.00016438,2]
[327283990,1715962238879,-260.85550723,0.00016438,2]
[327283992,1715962238888,-500.0,0.00016438,2]
[327283994,1715962238898,-1676.78,0.00016438,2]
[327283996,1715962238907,-171.16,0.00016438,2]
[327283998,1715962238917,-563.32,0.00016438,2]
[327284000,1715962238927,-500.0,0.00016438,2]
[327284002,1715962238936,-500.0,0.00016438,2]
[327284004,1715962238945,-2475.24,0.00016438,2]
[327284006,1715962238954,-500.0,0.00016438,2]
[327284008,1715962238963,-500.0,0.00016438,2]
[327284010,1715962238972,-534.18,0.00016438,2]
[327284012,1715962238981,-500.0,0.00016438,2]
[327284014,1715962238991,-500.0,0.00016438,2]
[327284016,1715962239003,-157.50948132,0.00016438,2]
[327284018,1715962239012,-500.0,0.00016438,2]
[327284020,1715962239023,-500.0,0.00016438,2]
[327284022,1715962239032,-500.0,0.00016438,2]
[327284024,1715962239042,-500.0,0.00016438,2]
[327284026,1715962239051,-500.0,0.00016438,2]
[327284028,1715962239060,-3245.47,0.00016438,2]
[327284030,1715962239069,-500.0,0.00016438,2]
[327284032,1715962239078,-500.0,0.00016438,2]
[327284034,1715962239088,-500.0,0.00016438,2]
[327284036,1715962239097,-500.0,0.00016438,2]
[327284038,1715962239107,-500.0,0.00016438,2]
[327284040,1715962239116,-12703.0,0.000165,2]
[327284042,1715962239126,-273.93944197,0.000165,2]
[327284044,1715962239137,-16725.6204698,0.0001669,2]
[327284046,1715962239146,-155.84098118,0.0001671,2]
[327284048,1715962239156,-500.0,0.00016712,2]
[327284050,1715962239165,-500.0,0.00016712,2]
[327284052,1715962239175,-500.0,0.00016712,2]
[327284054,1715962239184,-535.68,0.00016712,2]
[327284056,1715962239194,-500.0,0.00016712,2]
[327284058,1715962239204,-500.0,0.00016712,2]
[327284061,1715962239218,-500.0,0.00016712,2]
[327284063,1715962239228,-500.0,0.00016712,2]
[327284065,1715962239238,-500.0,0.00016712,2]
[327284067,1715962239247,-531.00455853,0.00016712,2]
[327284069,1715962239260,-216.5,0.00016712,2]
[327284070,1715962239270,-90.54210387,0.00016712,2]
[327284073,1715962239283,-409.45789613,0.00016712,2]
[327284075,1715962239296,-500.0,0.00016712,2]
[327284077,1715962239306,-180.96068196,0.00016712,2]
[327284509,1715962243368,-500.0,0.00016438,2]
[327284512,1715962243378,-500.0,0.00016438,2]
[327284515,1715962243387,-500.0,0.00016438,2]
[327284519,1715962243396,-319.03931804,0.00016712,2]
[327284520,1715962243406,-500.0,0.00016712,2]
[327284523,1715962243415,-209.17,0.00016712,2]
[327284525,1715962243425,-253.35,0.00016712,2]
[327284526,1715962243435,-324.34,0.00016712,2]
[327284528,1715962243444,-500.0,0.00016712,2]
[327284530,1715962243454,-500.0,0.00016712,2]
[327284533,1715962243463,-500.0,0.00016712,2]
[327284535,1715962243473,-500.0,0.00016712,2]
[327284536,1715962243482,-500.0,0.00016712,2]
[327284538,1715962243491,-500.0,0.00016712,2]
[327284540,1715962243500,-1219.10068196,0.00016712,2]
[327284634,1715962246110,-1677.03706618,0.00016437,2]
[327284636,1715962246120,-457.67931804,0.00016712,2]
[327284638,1715962246130,-563.32,0.00016712,2]
[327284640,1715962246139,-500.0,0.00016712,2]
[327284642,1715962246148,-500.0,0.00016712,2]
[327284644,1715962246158,-2475.24,0.00016712,2]
[327284646,1715962246167,-500.0,0.00016712,2]
[327284648,1715962246176,-534.18,0.00016712,2]
[327284649,1715962246186,-500.0,0.00016712,2]
[327284651,1715962246195,-388.64,0.00016712,2]
[327284652,1715962246204,-500.0,0.00016712,2]
[327284654,1715962246214,-3245.47,0.00016712,2]
[327284655,1715962246227,-500.0,0.00016712,2]
[327284657,1715962246236,-189.92,0.00016712,2]
[327284659,1715962246245,-500.0,0.00016712,2]
[327284660,1715962246254,-500.0,0.00016712,2]
[327284661,1715962246266,-500.0,0.00016712,2]
[327284662,1715962246275,-500.0,0.00016712,2]
[327284663,1715962246284,-353.21,0.00016986,2]
[327284664,1715962246293,-500.0,0.00016986,2]
[327284665,1715962246304,-540.45,0.00016986,2]
[327284666,1715962246314,-434.27,0.00016986,2]
[327284667,1715962246323,-500.0,0.00016986,2]
[327284668,1715962246332,-421.56,0.00016986,2]
[327284669,1715962246341,-585.2,0.00016986,2]
[327284670,1715962246350,-483.54,0.00016986,2]
[327284671,1715962246359,-500.0,0.00016986,2]
[327284672,1715962246368,-500.0,0.00016986,2]
[327284673,1715962246378,-500.0,0.00016986,2]
[327284674,1715962246387,-500.0,0.00016986,2]
[327284675,1715962246397,-500.0,0.00016986,2]
[327284676,1715962246406,-500.0,0.00016986,2]
[327284677,1715962246415,-500.0,0.00016986,2]
[327284678,1715962246424,-500.0,0.00016986,2]
[327284679,1715962246434,-500.0,0.00016986,2]
[327284680,1715962246443,-1676.78,0.00016986,2]
[327284681,1715962246452,-563.32,0.00016986,2]
[327284682,1715962246461,-500.0,0.00016986,2]
[327284683,1715962246470,-500.0,0.00016986,2]
[327284684,1715962246479,-2475.24,0.00016986,2]
[327284685,1715962246488,-500.0,0.00016986,2]
[327284686,1715962246497,-534.18,0.00016986,2]
[327284687,1715962246509,-500.0,0.00016986,2]
[327284688,1715962246518,-396.98,0.00016986,2]
[327284689,1715962246527,-3245.47,0.00016986,2]
[327284690,1715962246536,-500.0,0.00016986,2]
[327284691,1715962246546,-500.0,0.00016986,2]
[327284692,1715962246556,-500.0,0.00016986,2]
[327284693,1715962246565,-497.64,0.00016986,2]
[327284694,1715962246574,-500.0,0.00016986,2]
[327284695,1715962246583,-4221.46001999,0.00016999,2]
[327284696,1715962246593,-416.98047207,0.00017038,2]
[327284697,1715962246602,-433.7,0.00017102,3]
[327284698,1715962246612,-433.7,0.00017102,2]
[327284699,1715962246620,-150.0,0.00017102,3]
[327284700,1715962246630,-150.0,0.00017102,2]
[327284701,1715962246639,-156.10015172,0.00017256,2]
[327284702,1715962246648,-156.53311596,0.00017258,2]
[327284703,1715962246658,-194.46858245,0.00017258,2]
[327284704,1715962246667,-289.33641641,0.00017258,2]
[327284705,1715962246676,-156.15873807,0.00017258,2]
[327284706,1715962246685,-1712.9168005,0.00017259,2]
[327284707,1715962246694,-7829.85866747,0.0001726,3]
[327284708,1715962246703,-500.0,0.0001726,2]
[327284709,1715962246713,-500.0,0.0001726,2]
[327284710,1715962246722,-377.84,0.0001726,2]
[327284711,1715962246732,-260.35,0.0001726,2]
[327284712,1715962246741,-500.0,0.0001726,2]
[327284713,1715962246750,-449.71,0.0001726,2]
[327284714,1715962246761,-529.7324598,0.0001726,2]
[327284715,1715962246770,-500.0,0.0001726,2]
[327284716,1715962246780,-500.0,0.0001726,2]
[327284717,1715962246789,-500.0,0.0001726,2]
[327284718,1715962246798,-500.0,0.0001726,2]
[327284719,1715962246807,-1676.78,0.0001726,2]
[327284720,1715962246816,-563.32,0.0001726,2]
[327284721,1715962246826,-500.0,0.0001726,2]
[327284722,1715962246835,-583.39206347,0.0001726,2]
[327284723,1715962246844,-2475.24,0.0001726,2]
[327284724,1715962246854,-500.0,0.0001726,2]
[327284725,1715962246863,-534.18,0.0001726,2]
[327284726,1715962246873,-500.0,0.0001726,2]
[327284727,1715962246882,-3245.47,0.0001726,2]
[327284728,1715962246891,-568.15,0.0001726,2]
[327284729,1715962246900,-500.0,0.0001726,2]
[327284730,1715962246909,-500.0,0.0001726,2]
[327284731,1715962246918,-342.46569644,0.0001726,2]
[327284732,1715962246929,-439.45698615,0.00017332,2]
[327284733,1715962246939,-500.0,0.00017534,2]
[327284734,1715962246947,-500.0,0.00017534,2]
[327284735,1715962246957,-457.33,0.00017534,2]
[327284736,1715962246966,-500.0,0.00017534,2]
[327284737,1715962246974,-500.0,0.00017534,2]
[327284738,1715962246983,-525.76,0.00017534,2]
[327284739,1715962246992,-214.92914202,0.00017534,2]
[327284740,1715962247001,-1676.78,0.00017534,2]
[327284741,1715962247012,-563.32,0.00017534,2]
[327284742,1715962247021,-500.0,0.00017534,2]
[327284743,1715962247030,-2475.24,0.00017534,2]
[327284744,1715962247039,-500.0,0.00017534,2]
[327284745,1715962247048,-534.18,0.00017534,2]
[327284746,1715962247057,-500.0,0.00017534,2]
[327284747,1715962247067,-3245.47,0.00017534,2]
[327284748,1715962247076,-500.0,0.00017534,2]
[327284749,1715962247085,-500.0,0.00017534,2]
[327284750,1715962247095,-2000.0,0.00017708,2]
[327284751,1715962247104,-7848.29057262,0.00017798,2]
[327284752,1715962247115,-500.0,0.00017808,2]
[327284753,1715962247125,-500.0,0.00017808,2]
[327284754,1715962247134,-500.0,0.00017808,2]
[327284755,1715962247144,-500.0,0.00017808,2]
[327284756,1715962247153,-1676.78,0.00017808,2]
[327284757,1715962247163,-3090.44437915,0.00017808,2]
[327284758,1715962247172,-563.32,0.00017808,2]
[327284759,1715962247182,-500.0,0.00017808,2]
[327284760,1715962247191,-2475.24,0.00017808,2]
[327284761,1715962247200,-500.0,0.00017808,2]
[327284762,1715962247209,-534.18,0.00017808,2]
[327284763,1715962247222,-500.0,0.00017808,2]
[327284764,1715962247231,-3245.47,0.00017808,2]
[327284765,1715962247240,-500.0,0.00017808,2]
[327284766,1715962247251,-512.68,0.00017808,2]
[327284767,1715962247262,-433.7,0.0001782,2]
[327284768,1715962247271,-150.0,0.0001782,2]
[327284769,1715962247280,-10448.86120355,0.00017898,2]
[327284770,1715962247289,-64487.03936526,0.000179,2]
[327284771,1715962757467,690.11886562,9.999e-05,2]
[327284772,1715962816724,273.37336231,9.9e-05,2]
[327284773,1715962825271,273.37336231,9.9e-05,2]
[327284776,1715963136166,-164.1710129,0.00014996,2]
[327284777,1715963228121,-155.40164816,0.00014361,2]
[327284778,1715963231349,-690.11886562,0.0001436,2]
[327284779,1715963231369,-1907.94838169,0.00014361,2]
[327284780,1715963237099,-50.84371482,0.00014361,2]
[327284781,1715963237120,-196.95968318,0.00014362,2]
[327284782,1715963241094,-151.0,0.00014362,2]
[327284783,1715963243130,-206.13833,0.00014362,2]
[327284784,1715963253107,-151.0,0.00014361,2]
[327284785,1715963345170,-690.11886562,0.00014359,2]
[327284786,1715963345191,-931.58657076,0.0001436,2]
[327284787,1715963345215,-19220.19369362,0.00014362,2]
[327284788,1715963346190,-5125.7082932,0.00014362,2]
[327284789,1715963346213,-263.47984,0.00014692,2]
[327285074,1715963439252,-1148.90229176,0.00015,2]
[327285077,1715963439277,-690.11886562,0.00015163,2]
[327285080,1715963439294,-770.09710137,0.00015165,2]
[327285082,1715963439308,-817.80441059,0.00015165,2]
[327285085,1715963439322,-221.28872477,0.00015166,2]
[327285087,1715963439337,-202.51409049,0.00016,2]
[327285089,1715963439350,-7966.29275223,0.00016,2]
[327285092,1715963439364,-219.72849308,0.00016338,2]
[327285094,1715963439377,-1908.03369134,0.00016338,2]
[327285096,1715963439390,-173.63783846,0.00016436,2]
[327285099,1715963439403,-155.84098118,0.00016436,2]
[327285101,1715963439415,-502.20593887,0.00016438,2]
[327285103,1715963439427,-500.0,0.00016438,2]
[327285107,1715963439440,-500.0,0.00016438,2]
[327285109,1715963439451,-500.0,0.00016438,2]
[327285112,1715963439463,-299.6376765,0.00016438,2]
[327285115,1715963439474,-500.0,0.00016438,2]
[327285117,1715963439486,-500.0,0.00016438,2]
[327285120,1715963439498,-157.50948132,0.00016438,2]
[327285122,1715963439510,-505.32131072,0.00016438,2]
[327285124,1715963439522,-537.93709329,0.00016438,2]
[327285126,1715963439534,-500.0,0.00016438,2]
[327285128,1715963439546,-500.0,0.00016438,2]
[327285131,1715963439557,-500.0,0.00016438,2]
[327285133,1715963439569,-500.0,0.00016438,2]
[327285135,1715963439587,-500.0,0.00016438,2]
[327285137,1715963439599,-500.0,0.00016438,2]
[327285140,1715963439611,-500.0,0.00016438,2]
[327285142,1715963439624,-500.0,0.00016438,2]
[327285144,1715963439636,-500.0,0.00016438,2]
[327285146,1715963439647,-500.0,0.00016438,2]
[327285149,1715963439662,-500.0,0.00016438,2]
[327285169,1715963439862,-500.0,0.00016438,2]
[327285172,1715963439885,-500.0,0.00016438,2]
[327285174,1715963439896,-500.0,0.00016438,2]
[327285176,1715963439906,-500.0,0.00016438,2]
[327285178,1715963439916,-500.0,0.00016438,2]
[327285180,1715963439926,-500.0,0.00016438,2]
[327285182,1715963439936,-500.0,0.00016438,2]
[327285184,1715963439946,-500.0,0.00016438,2]
[327285186,1715963439956,-500.0,0.00016438,2]
[327285188,1715963439966,-500.0,0.00016438,2]
[327285190,1715963439976,-312.72951874,0.00016438,2]
[327285192,1715963439986,-500.0,0.00016438,2]
[327285194,1715963439995,-500.0,0.00016438,2]
[327285196,1715963440006,-500.0,0.00016438,2]
[327285198,1715963440016,-500.0,0.00016438,2]
[327285200,1715963440031,-506.49840294,0.00016438,2]
[327285202,1715963440041,-500.0,0.00016438,2]
[327285204,1715963440051,-500.0,0.00016438,2]
[327285206,1715963440061,-500.0,0.00016438,2]
[327285208,1715963440072,-500.0,0.00016438,2]
[327285210,1715963440082,-619.94628701,0.00016438,2]
[327285212,1715963440092,-500.0,0.00016438,2]
[327285214,1715963440102,-500.0,0.00016438,2]
[327285216,1715963440112,-500.0,0.00016438,2]
[327285218,1715963440122,-500.0,0.00016438,2]
[327285220,1715963440132,-531.34110359,0.00016438,2]
[327285222,1715963440142,-500.0,0.00016438,2]
[327285224,1715963440152,-514.1380679,0.00016438,2]
[327285226,1715963440162,-500.0,0.00016438,2]
[327285229,1715963440173,-564.9621803,0.00016438,2]
[327285232,1715963440184,-500.0,0.00016438,2]
[327285235,1715963440194,-570.64,0.00016438,2]
[327285238,1715963440205,-500.0,0.00016438,2]
[327285241,1715963440216,-303.8,0.00016438,2]
[327285244,1715963440226,-500.0,0.00016438,2]
[327285246,1715963440236,-500.0,0.00016438,2]
[327285250,1715963440247,-500.0,0.00016438,2]
[327285252,1715963440258,-500.0,0.00016438,2]
[327285256,1715963440268,-416.31022307,0.00016438,2]
[327285260,1715963440280,-500.0,0.00016438,2]
[327285262,1715963440291,-500.0,0.00016438,2]
[327285265,1715963440301,-500.0,0.00016438,2]
[327285268,1715963440311,-500.0,0.00016438,2]
[327285271,1715963440322,-500.0,0.00016438,2]
[327285274,1715963440333,-500.0,0.00016438,2]
[327285277,1715963440343,-500.0,0.00016438,2]
[327285280,1715963440353,-500.0,0.00016438,2]
[327285283,1715963440364,-500.0,0.00016438,2]
[327285286,1715963440374,-505.83413611,0.00016438,2]
[327285289,1715963440385,-500.0,0.00016438,2]
[327285292,1715963440395,-500.0,0.00016438,2]
[327285295,1715963440406,-500.0,0.00016438,2]
[327285298,1715963440417,-500.0,0.00016438,2]
[327285301,1715963440427,-500.0,0.00016438,2]
[327285304,1715963440437,-500.0,0.00016438,2]
[327285307,1715963440447,-500.90975211,0.00016438,2]
[327285310,1715963440456,-500.0,0.00016438,2]
[327285313,1715963440466,-500.0,0.00016438,2]
[327285316,1715963440477,-500.0,0.00016438,2]
[327285320,1715963440488,-590.46227602,0.00016438,2]
[327285323,1715963440498,-867.07,0.00016438,2]
[327285326,1715963440509,-500.0,0.00016438,2]
[327285329,1715963440519,-500.0,0.00016438,2]
[327285332,1715963440530,-500.0,0.00016438,2]
[327285335,1715963440540,-500.0,0.00016438,2]
[327285338,1715963440549,-1518.43,0.00016438,2]
[327285341,1715963440558,-500.0,0.00016438,2]
[327285344,1715963440569,-500.47322055,0.00016438,2]
[327285346,1715963440584,-519.7779062,0.00016438,2]
[327285348,1715963440594,-500.0,0.00016438,2]
[327285350,1715963440604,-500.85326757,0.00016438,2]
[327285352,1715963440614,-501.58210145,0.00016438,2]
[327285354,1715963440625,-500.0,0.00016438,2]
[327285356,1715963440634,-500.0,0.00016438,2]
[327285358,1715963440645,-514.84409514,0.00016438,2]
[327285360,1715963440656,-500.0,0.00016438,2]
[327285362,1715963440666,-506.26013588,0.00016438,2]
[327285364,1715963440676,-500.0,0.00016438,2]
[327285366,1715963440686,-500.0,0.00016438,2]
[327285367,1715963440695,-500.0,0.00016438,2]
[327285369,1715963440705,-502.10477674,0.00016438,2]
[327285371,1715963440715,-500.0,0.00016438,2]
[327285373,1715963440724,-500.0,0.00016438,2]
[327285375,1715963440734,-500.0,0.00016438,2]
[327285377,1715963440744,-500.0,0.00016438,2]
[327285379,1715963440753,-3235.57,0.00016438,2]
[327285381,1715963440763,-500.0,0.00016438,2]
[327285383,1715963440773,-581.33,0.00016438,2]
[327285385,1715963440785,-500.0,0.00016438,2]
[327285388,1715963440794,-500.0,0.00016438,2]
[327285389,1715963440804,-500.0,0.00016438,2]
[327285391,1715963440814,-500.0,0.00016438,2]
[327285393,1715963440823,-500.0,0.00016438,2]
[327285395,1715963440833,-500.0,0.00016438,2]
[327285397,1715963440843,-500.0,0.00016438,2]
[327285399,1715963440853,-500.0,0.00016438,2]
[327285401,1715963440863,-500.0,0.00016438,2]